[Event "November 21 Early 2023"]
[Site "https://www.chess.com"]
[Date "2023.11.21"]
[Round "3"]
[White "le-castor-faineant"]
[Black "ChessRespected"]
[Result "0-1"]
[Board "164"]
[TimeControl "180+1"]
[WhiteElo "2236"]
[BlackElo "2535"]
[WhiteClock "0:00:18"]
[BlackClock "0:01:00"]

1. e4 {[%clk 0:02:59]}  e5 {[%clk 0:02:59]} 2. Nf3 {[%clk 0:02:59]}  Nc6 {[%clk 0:02:59]} 3. Bb5 {[%clk 0:02:52]}  a6 {[%clk 0:02:59]} 4. Ba4 {[%clk 0:02:51]}  b5 {[%clk 0:02:59]} 5. Bb3 {[%clk 0:02:51]}  Nf6 {[%clk 0:02:59]} 6. Qe2 {[%clk 0:02:47]}  Bc5 {[%clk 0:02:55]} 7. a4 {[%clk 0:02:46]}  Rb8 {[%clk 0:02:55]} 8. axb5 {[%clk 0:02:46]}  axb5 {[%clk 0:02:56]} 9. Nc3 {[%clk 0:02:46]}  O-O {[%clk 0:02:52]} 10. O-O {[%clk 0:02:37]}  b4 {[%clk 0:02:43]} 11. Nd5 {[%clk 0:02:34]}  d6 {[%clk 0:02:42]} 12. d3 {[%clk 0:02:33]}  h6 {[%clk 0:02:41]} 13. h3 {[%clk 0:02:33]}  Be6 {[%clk 0:02:32]} 14. Be3 {[%clk 0:02:13]}  Bxe3 {[%clk 0:02:22]} 15. Qxe3 {[%clk 0:02:14]}  Bxd5 {[%clk 0:02:20]} 16. Bxd5 {[%clk 0:02:08]}  Nxd5 {[%clk 0:02:19]} 17. exd5 {[%clk 0:02:08]}  Ne7 {[%clk 0:02:20]} 18. Qe4 {[%clk 0:02:02]}  Qd7 {[%clk 0:02:09]} 19. c4 {[%clk 0:01:38]}  bxc3 {[%clk 0:02:07]} 20. bxc3 {[%clk 0:01:39]}  f5 {[%clk 0:02:03]} 21. Qc4 {[%clk 0:01:38]}  Rb5 {[%clk 0:01:56]} 22. Nxe5 {[%clk 0:01:34]}  dxe5 {[%clk 0:01:54]} 23. d6+ {[%clk 0:01:34]}  Nd5 {[%clk 0:01:54]} 24. dxc7 {[%clk 0:01:23]}  Rc8 {[%clk 0:01:54]} 25. Ra7 {[%clk 0:01:23]}  Kh7 {[%clk 0:01:49]} 26. Qa4 {[%clk 0:01:10]}  Nxc3 {[%clk 0:01:44]} 27. Qa6 {[%clk 0:01:05]}  Rxc7 {[%clk 0:01:39]} 28. Rxc7 {[%clk 0:01:03]}  Qxc7 {[%clk 0:01:38]} 29. Kh1 {[%clk 0:00:57]}  Qb6 {[%clk 0:01:28]} 30. Qc8 {[%clk 0:00:55]}  Ne2 {[%clk 0:01:09]} 31. Qxf5+ {[%clk 0:00:44]}  Qg6 {[%clk 0:01:08]} 32. Qd7 {[%clk 0:00:39]}  Rb2 {[%clk 0:01:03]} 33. Qd5 {[%clk 0:00:18]}  Qf5 {[%clk 0:01:00]} 0-1

[Event "November 21 Early 2023"]
[Site "https://www.chess.com"]
[Date "2023.11.21"]
[Round "3"]
[White "Cueto, Jonny"]
[Black "MFatigue"]
[Result "1-0"]
[Board "166"]
[TimeControl "180+1"]
[WhiteFideId "3300145"]
[WhiteElo "2155"]
[BlackElo "2533"]
[WhiteTeam "BOL"]
[WhiteClock "0:00:04"]
[BlackClock "0:00:04"]

1. d4 {[%clk 0:03:00]}  d5 {[%clk 0:02:59]} 2. Bf4 {[%clk 0:03:00]}  Nf6 {[%clk 0:02:59]} 3. e3 {[%clk 0:02:57]}  e6 {[%clk 0:03:00]} 4. Nf3 {[%clk 0:02:57]}  c5 {[%clk 0:03:00]} 5. Nbd2 {[%clk 0:02:57]}  Bd6 {[%clk 0:03:01]} 6. Ne5 {[%clk 0:02:57]}  Nc6 {[%clk 0:03:00]} 7. c3 {[%clk 0:02:57]}  Qc7 {[%clk 0:02:57]} 8. Ndf3 {[%clk 0:02:57]}  Ne4 {[%clk 0:02:52]} 9. Bd3 {[%clk 0:02:51]}  f6 {[%clk 0:02:50]} 10. Nxc6 {[%clk 0:02:51]}  Bxf4 {[%clk 0:02:44]} 11. Nxa7 {[%clk 0:02:51]}  Rxa7 {[%clk 0:02:38]} 12. exf4 {[%clk 0:02:47]}  Qxf4 {[%clk 0:02:39]} 13. Bb5+ {[%clk 0:02:17]}  Kf7 {[%clk 0:02:38]} 14. O-O {[%clk 0:02:15]}  g5 {[%clk 0:02:14]} 15. c4 {[%clk 0:02:06]}  Nd6 {[%clk 0:02:03]} 16. dxc5 {[%clk 0:01:51]}  Nxc4 {[%clk 0:02:02]} 17. b3 {[%clk 0:01:30]}  Na3 {[%clk 0:01:28]} 18. Qe2 {[%clk 0:01:23]}  Rd8 {[%clk 0:01:21]} 19. c6 {[%clk 0:01:08]}  Nxb5 {[%clk 0:01:10]} 20. Qxb5 {[%clk 0:01:07]}  bxc6 {[%clk 0:01:11]} 21. Qxc6 {[%clk 0:01:03]}  Rc7 {[%clk 0:01:11]} 22. Qb6 {[%clk 0:00:46]}  g4 {[%clk 0:00:55]} 23. Nd4 {[%clk 0:00:38]}  Re8 {[%clk 0:00:31]} 24. g3 {[%clk 0:00:34]}  Qe5 {[%clk 0:00:31]} 25. Rfe1 {[%clk 0:00:33]}  Rb7 {[%clk 0:00:31]} 26. Qc5 {[%clk 0:00:14]}  Qc7 {[%clk 0:00:32]} 27. Nc6 {[%clk 0:00:11]}  Bd7 {[%clk 0:00:26]} 28. Rac1 {[%clk 0:00:10]}  Qxc6 {[%clk 0:00:19]} 29. Qxc6 {[%clk 0:00:10]}  Bxc6 {[%clk 0:00:19]} 30. Rxc6 {[%clk 0:00:10]}  Rd7 {[%clk 0:00:20]} 31. Kf1 {[%clk 0:00:08]}  e5 {[%clk 0:00:19]} 32. Rec1 {[%clk 0:00:07]}  d4 {[%clk 0:00:18]} 33. Rc7 {[%clk 0:00:08]}  Ree7 {[%clk 0:00:17]} 34. Rxd7 {[%clk 0:00:08]}  Rxd7 {[%clk 0:00:18]} 35. Ke1 {[%clk 0:00:08]}  Ke6 {[%clk 0:00:19]} 36. b4 {[%clk 0:00:07]}  Kd5 {[%clk 0:00:19]} 37. a4 {[%clk 0:00:04]}  d3 {[%clk 0:00:14]} 38. Kd2 {[%clk 0:00:03]}  Kd4 {[%clk 0:00:14]} 39. b5 {[%clk 0:00:03]}  Ra7 {[%clk 0:00:14]} 40. Ra1 {[%clk 0:00:03]}  Rc7 {[%clk 0:00:11]} 41. Ra2 {[%clk 0:00:04]}  e4 {[%clk 0:00:06]} 42. b6 {[%clk 0:00:03]}  Rb7 {[%clk 0:00:06]} 43. a5 {[%clk 0:00:03]}  Kc5 {[%clk 0:00:07]} 44. a6 {[%clk 0:00:03]}  Rxb6 {[%clk 0:00:04]} 45. a7 {[%clk 0:00:04]} 1-0

[Event "November 21 Early 2023"]
[Site "https://www.chess.com"]
[Date "2023.11.21"]
[Round "3"]
[White "Essing, Arnold"]
[Black "Zomorrodian, Eilia"]
[Result "0-1"]
[Board "169"]
[TimeControl "180+1"]
[WhiteFideId "4619862"]
[BlackFideId "12551805"]
[WhiteElo "2257"]
[BlackElo "2109"]
[WhiteTeam "GER"]
[BlackTeam "CAN"]
[WhiteClock "0:00:42"]
[BlackClock "0:01:19"]

1. d4 {[%clk 0:03:00]}  Nf6 {[%clk 0:02:59]} 2. Nf3 {[%clk 0:03:01]}  g6 {[%clk 0:02:59]} 3. c4 {[%clk 0:03:01]}  Bg7 {[%clk 0:03:00]} 4. Nc3 {[%clk 0:03:01]}  O-O {[%clk 0:03:01]} 5. e4 {[%clk 0:03:02]}  d6 {[%clk 0:03:02]} 6. Be2 {[%clk 0:03:02]}  c5 {[%clk 0:03:03]} 7. d5 {[%clk 0:03:02]}  e6 {[%clk 0:03:03]} 8. Bg5 {[%clk 0:03:01]}  exd5 {[%clk 0:03:04]} 9. cxd5 {[%clk 0:03:02]}  Re8 {[%clk 0:03:04]} 10. Nd2 {[%clk 0:03:02]}  b6 {[%clk 0:03:04]} 11. O-O {[%clk 0:03:01]}  Ba6 {[%clk 0:03:04]} 12. Bxa6 {[%clk 0:03:00]}  Nxa6 {[%clk 0:03:04]} 13. Re1 {[%clk 0:02:57]}  Nc7 {[%clk 0:03:02]} 14. a4 {[%clk 0:02:56]}  a6 {[%clk 0:02:47]} 15. f3 {[%clk 0:02:24]}  b5 {[%clk 0:02:39]} 16. axb5 {[%clk 0:02:24]}  axb5 {[%clk 0:02:40]} 17. Rxa8 {[%clk 0:02:21]}  Qxa8 {[%clk 0:02:41]} 18. Bf4 {[%clk 0:02:13]}  b4 {[%clk 0:02:41]} 19. Na4 {[%clk 0:02:06]}  Nb5 {[%clk 0:02:38]} 20. Nc4 {[%clk 0:02:02]}  Qa6 {[%clk 0:02:26]} 21. b3 {[%clk 0:02:00]}  Nh5 {[%clk 0:02:23]} 22. Bd2 {[%clk 0:01:44]}  Nc3 {[%clk 0:02:10]} 23. Bxc3 {[%clk 0:01:38]}  bxc3 {[%clk 0:02:11]} 24. Qc2 {[%clk 0:01:36]}  Bd4+ {[%clk 0:01:36]} 25. Kh1 {[%clk 0:01:35]}  Nf4 {[%clk 0:01:29]} 26. g3 {[%clk 0:01:24]}  Nxd5 {[%clk 0:01:25]} 27. Re2 {[%clk 0:01:00]}  Nb4 {[%clk 0:01:20]} 28. Qc1 {[%clk 0:00:42]}  d5 {[%clk 0:01:19]} 0-1

[Event "November 21 Early 2023"]
[Site "https://www.chess.com"]
[Date "2023.11.21"]
[Round "3"]
[White "Do Nascimento,Christian Almeida"]
[Black "seasidesunset"]
[Result "1-0"]
[Board "171"]
[TimeControl "180+1"]
[WhiteFideId "2143801"]
[WhiteElo "2118"]
[BlackElo "2184"]
[WhiteTeam "BRA"]
[WhiteClock "0:00:54"]
[BlackClock "0:00:13"]

1. e4 {[%clk 0:02:55]}  c5 {[%clk 0:02:59]} 2. Nf3 {[%clk 0:02:55]}  d6 {[%clk 0:02:59]} 3. d4 {[%clk 0:02:55]}  cxd4 {[%clk 0:03:00]} 4. Nxd4 {[%clk 0:02:55]}  Nf6 {[%clk 0:03:01]} 5. Nc3 {[%clk 0:02:52]}  a6 {[%clk 0:03:01]} 6. Be2 {[%clk 0:02:52]}  e5 {[%clk 0:03:00]} 7. Nb3 {[%clk 0:02:51]}  Be7 {[%clk 0:03:00]} 8. Be3 {[%clk 0:02:47]}  Be6 {[%clk 0:02:59]} 9. Nd5 {[%clk 0:02:46]}  Nxd5 {[%clk 0:02:23]} 10. exd5 {[%clk 0:02:45]}  Bf5 {[%clk 0:02:24]} 11. c4 {[%clk 0:02:45]}  Nd7 {[%clk 0:02:23]} 12. O-O {[%clk 0:02:45]}  O-O {[%clk 0:02:22]} 13. f4 {[%clk 0:02:32]}  exf4 {[%clk 0:02:06]} 14. Bxf4 {[%clk 0:02:28]}  Bg6 {[%clk 0:01:59]} 15. Kh1 {[%clk 0:02:25]}  Ne5 {[%clk 0:01:56]} 16. Bxe5 {[%clk 0:02:19]}  dxe5 {[%clk 0:01:56]} 17. c5 {[%clk 0:02:17]}  Bg5 {[%clk 0:01:50]} 18. d6 {[%clk 0:02:07]}  a5 {[%clk 0:01:36]} 19. Qd5 {[%clk 0:01:48]}  a4 {[%clk 0:01:21]} 20. Nd2 {[%clk 0:01:47]}  Bxd2 {[%clk 0:00:57]} 21. Qxd2 {[%clk 0:01:48]}  Be4 {[%clk 0:00:45]} 22. Bf3 {[%clk 0:01:47]}  Bxf3 {[%clk 0:00:45]} 23. Rxf3 {[%clk 0:01:47]}  Qd7 {[%clk 0:00:41]} 24. Qd5 {[%clk 0:01:45]}  Rae8 {[%clk 0:00:37]} 25. b4 {[%clk 0:01:34]}  axb3 {[%clk 0:00:25]} 26. axb3 {[%clk 0:01:34]}  e4 {[%clk 0:00:24]} 27. Re3 {[%clk 0:01:29]}  Qg4 {[%clk 0:00:23]} 28. Rae1 {[%clk 0:01:19]}  Kh8 {[%clk 0:00:18]} 29. Rxe4 {[%clk 0:01:10]}  Rxe4 {[%clk 0:00:18]} 30. Qxe4 {[%clk 0:01:10]}  Qg5 {[%clk 0:00:18]} 31. Qe7 {[%clk 0:01:03]}  Qxe7 {[%clk 0:00:16]} 32. Rxe7 {[%clk 0:01:02]}  Rc8 {[%clk 0:00:15]} 33. d7 {[%clk 0:01:01]}  Rf8 {[%clk 0:00:13]} 34. Re8 {[%clk 0:00:59]}  Kg8 {[%clk 0:00:14]} 35. d8=Q {[%clk 0:00:54]}  Rxe8 {[%clk 0:00:13]} 36. Qxe8# {[%clk 0:00:54]} 1-0

[Event "November 21 Early 2023"]
[Site "https://www.chess.com"]
[Date "2023.11.21"]
[Round "3"]
[White "Petersson, Kjell"]
[Black "brm72"]
[Result "0-1"]
[Board "174"]
[TimeControl "180+1"]
[WhiteFideId "1705148"]
[WhiteElo "1994"]
[BlackElo "2526"]
[WhiteTeam "SWE"]
[WhiteClock "0:00:39"]
[BlackClock "0:00:41"]

1. d4 {[%clk 0:03:00]}  Nf6 {[%clk 0:02:56]} 2. Bf4 {[%clk 0:03:01]}  g6 {[%clk 0:02:51]} 3. Nc3 {[%clk 0:03:00]}  d5 {[%clk 0:02:49]} 4. e3 {[%clk 0:03:00]}  Bg7 {[%clk 0:02:48]} 5. Nb5 {[%clk 0:03:01]}  Na6 {[%clk 0:02:47]} 6. Nc3 {[%clk 0:03:02]}  O-O {[%clk 0:02:42]} 7. Bxa6 {[%clk 0:03:00]}  bxa6 {[%clk 0:02:43]} 8. Be5 {[%clk 0:03:00]}  a5 {[%clk 0:02:36]} 9. Nge2 {[%clk 0:02:55]}  Ba6 {[%clk 0:02:32]} 10. O-O {[%clk 0:02:41]}  Ne4 {[%clk 0:02:07]} 11. Bxg7 {[%clk 0:02:39]}  Kxg7 {[%clk 0:02:08]} 12. Nxe4 {[%clk 0:02:22]}  dxe4 {[%clk 0:02:07]} 13. Re1 {[%clk 0:02:22]}  c5 {[%clk 0:01:53]} 14. dxc5 {[%clk 0:02:15]}  Qc7 {[%clk 0:01:31]} 15. Qd4+ {[%clk 0:02:12]}  e5 {[%clk 0:01:31]} 16. Qxe4 {[%clk 0:02:10]}  Qxc5 {[%clk 0:01:31]} 17. b3 {[%clk 0:01:54]}  f5 {[%clk 0:01:21]} 18. Qa4 {[%clk 0:01:50]}  Qxc2 {[%clk 0:01:16]} 19. Rac1 {[%clk 0:01:32]}  Qd2 {[%clk 0:01:09]} 20. Rcd1 {[%clk 0:01:12]}  Qb4 {[%clk 0:00:55]} 21. Qd7+ {[%clk 0:01:04]}  Rf7 {[%clk 0:00:52]} 22. Qd5 {[%clk 0:01:02]}  Re8 {[%clk 0:00:49]} 23. Ng3 {[%clk 0:00:56]}  Bb7 {[%clk 0:00:48]} 24. Qd3 {[%clk 0:00:48]}  h5 {[%clk 0:00:46]} 25. Rc1 {[%clk 0:00:39]}  h4 {[%clk 0:00:43]} 26. Ne2 {[%clk 0:00:40]}  Qg4 {[%clk 0:00:41]} 27. h3 {[%clk 0:00:39]}  Qxg2# {[%clk 0:00:41]} 0-1

[Event "November 21 Early 2023"]
[Site "https://www.chess.com"]
[Date "2023.11.21"]
[Round "3"]
[White "Skiadopoulos, Nikolaos"]
[Black "Quirke, Jeffrey"]
[Result "0-1"]
[Board "175"]
[TimeControl "180+1"]
[WhiteFideId "4200772"]
[BlackFideId "2013029"]
[WhiteElo "2022"]
[BlackElo "2223"]
[WhiteTeam "GRE"]
[BlackTeam "USA"]
[WhiteClock "0:00:00"]
[BlackClock "0:00:28"]

1. e4 {[%clk 0:02:40]}  e6 {[%clk 0:02:59]} 2. d4 {[%clk 0:02:35]}  d5 {[%clk 0:02:58]} 3. e5 {[%clk 0:02:34]}  c5 {[%clk 0:02:58]} 4. c3 {[%clk 0:02:33]}  Nc6 {[%clk 0:02:58]} 5. Nf3 {[%clk 0:02:32]}  Nge7 {[%clk 0:02:59]} 6. Na3 {[%clk 0:02:31]}  cxd4 {[%clk 0:02:54]} 7. cxd4 {[%clk 0:02:31]}  Nf5 {[%clk 0:02:53]} 8. Nc2 {[%clk 0:02:31]}  Qb6 {[%clk 0:02:43]} 9. Be2 {[%clk 0:02:20]}  h5 {[%clk 0:02:38]} 10. O-O {[%clk 0:02:19]}  Be7 {[%clk 0:02:37]} 11. b3 {[%clk 0:02:16]}  a5 {[%clk 0:02:37]} 12. Bb2 {[%clk 0:02:08]}  Bd7 {[%clk 0:02:36]} 13. Ne3 {[%clk 0:01:57]}  g6 {[%clk 0:02:27]} 14. a3 {[%clk 0:01:45]}  Rc8 {[%clk 0:02:12]} 15. Rb1 {[%clk 0:01:37]}  Na7 {[%clk 0:02:06]} 16. a4 {[%clk 0:01:31]}  Nc6 {[%clk 0:02:05]} 17. Bb5 {[%clk 0:01:30]}  Nb4 {[%clk 0:02:01]} 18. Bxd7+ {[%clk 0:01:21]}  Kxd7 {[%clk 0:02:02]} 19. Qd2 {[%clk 0:01:09]}  Qa6 {[%clk 0:01:55]} 20. Rfc1 {[%clk 0:01:05]}  Qd3 {[%clk 0:01:41]} 21. Rc3 {[%clk 0:00:55]}  Qxd2 {[%clk 0:01:39]} 22. Nxd2 {[%clk 0:00:54]}  Rxc3 {[%clk 0:01:36]} 23. Bxc3 {[%clk 0:00:53]}  Rc8 {[%clk 0:01:37]} 24. Bxb4 {[%clk 0:00:52]}  Bxb4 {[%clk 0:01:35]} 25. Nxf5 {[%clk 0:00:52]}  gxf5 {[%clk 0:01:31]} 26. Nf3 {[%clk 0:00:47]}  Rc2 {[%clk 0:01:29]} 27. Ng5 {[%clk 0:00:39]}  Ke7 {[%clk 0:01:21]} 28. Nf3 {[%clk 0:00:25]}  Bc3 {[%clk 0:01:03]} 29. Kf1 {[%clk 0:00:21]}  f6 {[%clk 0:00:53]} 30. exf6+ {[%clk 0:00:20]}  Kxf6 {[%clk 0:00:54]} 31. g3 {[%clk 0:00:17]}  f4 {[%clk 0:00:52]} 32. Rd1 {[%clk 0:00:09]}  Kf5 {[%clk 0:00:50]} 33. h3 {[%clk 0:00:06]}  fxg3 {[%clk 0:00:47]} 34. fxg3 {[%clk 0:00:06]}  Rb2 {[%clk 0:00:33]} 35. Rd3 {[%clk 0:00:06]}  Rxb3 {[%clk 0:00:30]} 36. Re3 {[%clk 0:00:00]}  Rb1+ {[%clk 0:00:28]} 0-1

[Event "November 21 Early 2023"]
[Site "https://www.chess.com"]
[Date "2023.11.21"]
[Round "3"]
[White "MKlose11"]
[Black "Skurikhin, Dmitrij"]
[Result "1-0"]
[Board "177"]
[TimeControl "180+1"]
[BlackFideId "4161297"]
[WhiteElo "2659"]
[BlackElo "2197"]
[BlackTeam "RUS"]
[WhiteClock "0:00:56"]
[BlackClock "0:00:00"]

1. e4 {[%clk 0:03:00]}  e6 {[%clk 0:02:59]} 2. d4 {[%clk 0:02:55]}  d5 {[%clk 0:02:59]} 3. Nc3 {[%clk 0:02:55]}  Nf6 {[%clk 0:02:58]} 4. Bg5 {[%clk 0:02:49]}  Bb4 {[%clk 0:02:54]} 5. Ne2 {[%clk 0:02:49]}  dxe4 {[%clk 0:02:53]} 6. a3 {[%clk 0:02:49]}  Be7 {[%clk 0:02:52]} 7. Bxf6 {[%clk 0:02:46]}  gxf6 {[%clk 0:02:47]} 8. Nxe4 {[%clk 0:02:47]}  f5 {[%clk 0:02:47]} 9. N4c3 {[%clk 0:02:46]}  b6 {[%clk 0:02:47]} 10. d5 {[%clk 0:02:44]}  Bb7 {[%clk 0:02:46]} 11. dxe6 {[%clk 0:02:43]}  fxe6 {[%clk 0:02:46]} 12. Qxd8+ {[%clk 0:02:34]}  Bxd8 {[%clk 0:02:42]} 13. Nf4 {[%clk 0:02:35]}  e5 {[%clk 0:02:37]} 14. Ne6 {[%clk 0:02:11]}  c6 {[%clk 0:02:17]} 15. O-O-O {[%clk 0:02:07]}  Nd7 {[%clk 0:02:16]} 16. Bd3 {[%clk 0:02:00]}  e4 {[%clk 0:02:11]} 17. Be2 {[%clk 0:01:54]}  Ke7 {[%clk 0:02:07]} 18. Nd4 {[%clk 0:01:42]}  Rf8 {[%clk 0:01:36]} 19. g4 {[%clk 0:01:40]}  fxg4 {[%clk 0:00:39]} 20. Bxg4 {[%clk 0:01:41]}  Ne5 {[%clk 0:00:33]} 21. Nf5+ {[%clk 0:01:34]}  Kf7 {[%clk 0:00:21]} 22. Nd6+ {[%clk 0:01:24]}  Ke7 {[%clk 0:00:17]} 23. Bh3 {[%clk 0:01:15]}  Ba6 {[%clk 0:00:10]} 24. Ncxe4 {[%clk 0:01:10]}  Bc7 {[%clk 0:00:10]} 25. Nf5+ {[%clk 0:01:09]}  Rxf5 {[%clk 0:00:05]} 26. Bxf5 {[%clk 0:01:08]}  Rf8 {[%clk 0:00:05]} 27. Ng3 {[%clk 0:00:56]}  c5 {[%clk 0:00:00]} 28. f4 {[%clk 0:00:56]} 1-0

[Event "November 21 Early 2023"]
[Site "https://www.chess.com"]
[Date "2023.11.21"]
[Round "3"]
[White "Mejia, Cherry Ann"]
[Black "Andriasian, Zaven"]
[Result "0-1"]
[Board "178"]
[TimeControl "180+1"]
[WhiteFideId "5206880"]
[BlackFideId "13302000"]
[WhiteElo "2009"]
[BlackElo "2624"]
[WhiteTeam "PHI"]
[BlackTeam "ARM"]
[WhiteClock "0:00:00"]
[BlackClock "0:02:03"]

1. e4 {[%clk 0:03:00]}  c5 {[%clk 0:02:57]} 2. Nc3 {[%clk 0:03:00]}  d6 {[%clk 0:02:56]} 3. g3 {[%clk 0:03:00]}  Nc6 {[%clk 0:02:55]} 4. Bg2 {[%clk 0:03:00]}  h5 {[%clk 0:02:56]} 5. h3 {[%clk 0:03:00]}  g6 {[%clk 0:02:56]} 6. d3 {[%clk 0:03:00]}  Bg7 {[%clk 0:02:55]} 7. Be3 {[%clk 0:03:00]}  e5 {[%clk 0:02:55]} 8. Qd2 {[%clk 0:02:59]}  Nge7 {[%clk 0:02:55]} 9. f4 {[%clk 0:02:56]}  Nd4 {[%clk 0:02:55]} 10. Nd1 {[%clk 0:02:54]}  h4 {[%clk 0:02:54]} 11. g4 {[%clk 0:02:53]}  f5 {[%clk 0:02:54]} 12. c3 {[%clk 0:02:53]}  exf4 {[%clk 0:02:50]} 13. Bxf4 {[%clk 0:02:52]}  Ne6 {[%clk 0:02:50]} 14. gxf5 {[%clk 0:02:41]}  Nxf4 {[%clk 0:02:49]} 15. Qxf4 {[%clk 0:02:40]}  Bh6 {[%clk 0:02:49]} 16. Qf2 {[%clk 0:01:58]}  gxf5 {[%clk 0:02:49]} 17. Ne2 {[%clk 0:01:53]}  Bd7 {[%clk 0:02:42]} 18. O-O {[%clk 0:01:51]}  Qc7 {[%clk 0:02:42]} 19. Ne3 {[%clk 0:01:45]}  O-O-O {[%clk 0:02:41]} 20. exf5 {[%clk 0:01:29]}  Bxe3 {[%clk 0:02:41]} 21. Qxe3 {[%clk 0:01:29]}  Nxf5 {[%clk 0:02:41]} 22. Qd2 {[%clk 0:01:16]}  Rhg8 {[%clk 0:02:41]} 23. Nf4 {[%clk 0:01:09]}  Bc6 {[%clk 0:02:39]} 24. Rf2 {[%clk 0:01:05]}  Rde8 {[%clk 0:02:36]} 25. Re1 {[%clk 0:00:54]}  a6 {[%clk 0:02:31]} 26. Rxe8+ {[%clk 0:00:52]}  Rxe8 {[%clk 0:02:32]} 27. Re2 {[%clk 0:00:42]}  Rg8 {[%clk 0:02:28]} 28. Qe1 {[%clk 0:00:29]}  Kb8 {[%clk 0:02:18]} 29. Kh2 {[%clk 0:00:06]}  Bxg2 {[%clk 0:02:15]} 30. Rxg2 {[%clk 0:00:06]}  d5 {[%clk 0:02:16]} 31. Rxg8+ {[%clk 0:00:04]}  Ka7 {[%clk 0:02:16]} 32. Qf2 {[%clk 0:00:04]}  d4 {[%clk 0:02:16]} 33. Kg2 {[%clk 0:00:04]}  Ne3+ {[%clk 0:02:14]} 34. Kg1 {[%clk 0:00:04]}  Qf7 {[%clk 0:02:14]} 35. Rg5 {[%clk 0:00:03]}  Qxa2 {[%clk 0:02:13]} 36. Qxh4 {[%clk 0:00:03]}  Qb1+ {[%clk 0:02:12]} 37. Kf2 {[%clk 0:00:03]}  Qxb2+ {[%clk 0:02:10]} 38. Kf3 {[%clk 0:00:03]}  dxc3 {[%clk 0:02:10]} 39. Nd5 {[%clk 0:00:03]}  c2 {[%clk 0:02:04]} 40. Rg1 {[%clk 0:00:03]}  Nxd5 {[%clk 0:02:04]} 41. Qe4 {[%clk 0:00:00]}  Nb4 {[%clk 0:02:03]} 0-1

[Event "November 21 Early 2023"]
[Site "https://www.chess.com"]
[Date "2023.11.21"]
[Round "3"]
[White "Krzywda, Andrzej"]
[Black "Silvestre, Christian"]
[Result "0-1"]
[Board "180"]
[TimeControl "180+1"]
[WhiteFideId "1114565"]
[BlackFideId "30956269"]
[WhiteElo "2130"]
[BlackElo "2329"]
[WhiteTeam "POL"]
[BlackTeam "USA"]
[WhiteClock "0:00:14"]
[BlackClock "0:00:20"]

1. e4 {[%clk 0:03:00]}  c5 {[%clk 0:02:58]} 2. Nf3 {[%clk 0:03:01]}  a6 {[%clk 0:02:53]} 3. c4 {[%clk 0:03:00]}  e6 {[%clk 0:02:52]} 4. Nc3 {[%clk 0:03:00]}  Qc7 {[%clk 0:02:50]} 5. d4 {[%clk 0:03:00]}  cxd4 {[%clk 0:02:50]} 6. Nxd4 {[%clk 0:03:00]}  Nf6 {[%clk 0:02:50]} 7. Bd3 {[%clk 0:02:57]}  b6 {[%clk 0:02:51]} 8. O-O {[%clk 0:02:57]}  Bb7 {[%clk 0:02:51]} 9. Qe2 {[%clk 0:02:57]}  d6 {[%clk 0:02:52]} 10. f4 {[%clk 0:02:58]}  Nbd7 {[%clk 0:02:52]} 11. f5 {[%clk 0:02:53]}  e5 {[%clk 0:02:43]} 12. Nc2 {[%clk 0:02:51]}  h6 {[%clk 0:02:41]} 13. Ne3 {[%clk 0:02:48]}  Nc5 {[%clk 0:02:38]} 14. Ned5 {[%clk 0:02:41]}  Bxd5 {[%clk 0:02:36]} 15. cxd5 {[%clk 0:02:39]}  b5 {[%clk 0:02:26]} 16. b4 {[%clk 0:02:32]}  Ncd7 {[%clk 0:02:23]} 17. Be3 {[%clk 0:02:30]}  Qxc3 {[%clk 0:02:17]} 18. a4 {[%clk 0:02:19]}  bxa4 {[%clk 0:01:58]} 19. Rxa4 {[%clk 0:02:13]}  Qc7 {[%clk 0:01:47]} 20. Bxa6 {[%clk 0:02:06]}  Be7 {[%clk 0:01:43]} 21. Rc1 {[%clk 0:02:06]}  Qb8 {[%clk 0:01:42]} 22. Rc8+ {[%clk 0:01:59]}  Qxc8 {[%clk 0:01:41]} 23. Bxc8 {[%clk 0:02:00]}  Rxa4 {[%clk 0:01:40]} 24. Qb5 {[%clk 0:01:45]}  Ra1+ {[%clk 0:01:29]} 25. Kf2 {[%clk 0:01:45]}  Nxe4+ {[%clk 0:01:09]} 26. Kf3 {[%clk 0:01:44]}  Nf6 {[%clk 0:01:02]} 27. Qc6 {[%clk 0:01:37]}  e4+ {[%clk 0:00:50]} 28. Ke2 {[%clk 0:01:31]}  Ra2+ {[%clk 0:00:45]} 29. Kf1 {[%clk 0:01:31]}  Ra1+ {[%clk 0:00:44]} 30. Ke2 {[%clk 0:01:31]}  Ra2+ {[%clk 0:00:45]} 31. Kd1 {[%clk 0:01:31]}  Ra1+ {[%clk 0:00:45]} 32. Kc2 {[%clk 0:01:31]}  O-O {[%clk 0:00:40]} 33. Bxd7 {[%clk 0:01:29]}  Nxd7 {[%clk 0:00:41]} 34. Qxd7 {[%clk 0:01:29]}  Bf6 {[%clk 0:00:36]} 35. b5 {[%clk 0:01:28]}  Rfa8 {[%clk 0:00:36]} 36. Bc1 {[%clk 0:00:37]}  R8a2+ {[%clk 0:00:33]} 37. Kb3 {[%clk 0:00:38]}  Ra7 {[%clk 0:00:29]} 38. Qe8+ {[%clk 0:00:32]}  Kh7 {[%clk 0:00:28]} 39. Bb2 {[%clk 0:00:17]}  Rb1 {[%clk 0:00:26]} 40. Qxe4 {[%clk 0:00:15]}  Rxb2+ {[%clk 0:00:26]} 41. Kc4 {[%clk 0:00:14]}  Ra4+ {[%clk 0:00:26]} 42. Kd3 {[%clk 0:00:14]}  Rxe4 {[%clk 0:00:27]} 43. Kxe4 {[%clk 0:00:15]}  Rxb5 {[%clk 0:00:26]} 44. Kf3 {[%clk 0:00:16]}  Rxd5 {[%clk 0:00:26]} 45. Kg4 {[%clk 0:00:16]}  Re5 {[%clk 0:00:26]} 46. Kh5 {[%clk 0:00:17]}  Rxf5+ {[%clk 0:00:26]} 47. Kg4 {[%clk 0:00:17]}  Rg5+ {[%clk 0:00:26]} 48. Kh3 {[%clk 0:00:17]}  Rg6 {[%clk 0:00:27]} 49. g4 {[%clk 0:00:17]}  Be5 {[%clk 0:00:27]} 50. Kh4 {[%clk 0:00:17]}  d5 {[%clk 0:00:28]} 51. g5 {[%clk 0:00:18]}  d4 {[%clk 0:00:28]} 52. gxh6 {[%clk 0:00:17]}  d3 {[%clk 0:00:28]} 53. hxg7 {[%clk 0:00:17]}  d2 {[%clk 0:00:28]} 54. g8=Q+ {[%clk 0:00:17]}  Kxg8 {[%clk 0:00:28]} 55. h3 {[%clk 0:00:17]}  Rh6+ {[%clk 0:00:27]} 56. Kg5 {[%clk 0:00:17]}  d1=Q {[%clk 0:00:26]} 57. Kxh6 {[%clk 0:00:17]}  Qd2+ {[%clk 0:00:25]} 58. Kh5 {[%clk 0:00:17]}  Qd7 {[%clk 0:00:21]} 59. Kh4 {[%clk 0:00:16]}  Bb8 {[%clk 0:00:22]} 60. Kg5 {[%clk 0:00:15]}  Kg7 {[%clk 0:00:20]} 61. h4 {[%clk 0:00:15]}  Qd5+ {[%clk 0:00:20]} 62. Kg4 {[%clk 0:00:15]}  Qe4+ {[%clk 0:00:20]} 63. Kh3 {[%clk 0:00:14]}  Qf3# {[%clk 0:00:20]} 0-1